Cogmind - Beta 15 @@@ ROGUE MODE // 2025.07.20 @ 15:49:25 Player: carterz30cal Result: Destroyed by G-47 Trooper with Particle Gun Performance ------------- Evolutions (2) 1000 Regions Visited (5) 1000 Robots Destroyed (76) 380 Value Destroyed (2443) 2443 Prototype IDs (3) 60 Alien Tech Used (0) 0 Bonus (91) 91 TOTAL SCORE: 4974 Bonus ------- Follower Combat Kills 91 Cogmind --------- Core Integrity 0/550 Matter 133/300 Energy 71/100 System Corruption 2% Temperature Cool (9) Movement Core (50) Location -8/Materials Parts ------- > --- POWER (1) -------- (None) > --- PROPULSION (5) --- (None) > --- UTILITY (3) ------ (None) > --- WEAPON (2) ------- (None) > --- INVENTORY (5) ---- Heavy Assault Rifle High-powered Shotgun High-powered Shotgun High-powered Shotgun Flak Cannon Peak State ------------ > --- POWER ------------ Light Nuclear Core > --- PROPULSION ------- Light Treads Aluminum Leg Carbon-fiber Leg Armored Wheel > --- UTILITY ---------- Huge Storage Unit Improved Sensor Array Improved Signal Interpreter > --- WEAPON ----------- High-powered Shotgun High-powered Shotgun > --- INVENTORY -------- Light Nuclear Core Heat Sink High-capacity Storage Unit High-capacity Matter Pod High-capacity Matter Pod Sensor Array Improved Terrain Scanner Transport Network Coupler Improved Utility Shielding Light Armor Plating Light Armor Plating Hardlight Generator Shield Generator Heavy Assault Rifle Heavy Assault Rifle Minigun High-powered Shotgun High-powered Shotgun Light Cannon Flak Cannon Flak Cannon Proton Missile Launcher Proton Missile Launcher Grenade Launcher Grenade Launcher [Rating: 28] Favorites ----------- Power Ion Engine Engine Ion Engine Power Core Light Nuclear Core Propulsion Light Treads Treads Light Treads Leg Carbon-fiber Leg Wheel Armored Wheel Utility Light Armor Plating Device Sensor Array Storage High-capacity Storage Unit Processor Improved Signal Interpreter Protection Light Armor Plating Weapon Light Assault Rifle Energy Gun Small Laser Ballistic Gun Light Assault Rifle Ballistic Cannon Light Cannon Launcher Grenade Launcher Build | -11 -10 -10 -10 -9 -8 ------- Run | Yrd Mat Min Exi Min Mat Slots Evolved 4 | . . . . . 4 Power . | . . . . . . Propulsion 3 | . . . . . 3 Utility 1 | . . . . . 1 Weapon . | . . . . . . Parts Attached 56 | 7 13 3 . 2 31 Power 9 | 1 2 1 . 1 4 Engine 6 | 1 2 1 . 1 1 Core 3 | . . . . . 3 Reactor . | . . . . . . Propulsion 10 | 2 1 1 . . 6 Treads 7 | 2 1 1 . . 3 Leg 2 | . . . . . 2 Wheel 1 | . . . . . 1 Hover . | . . . . . . Flight . | . . . . . . Utility 18 | 2 6 1 . 1 8 Device 5 | 1 . . . . 4 Storage 5 | 1 2 1 . . 1 Processor 2 | . 1 . . . 1 Hackware . | . . . . . . Protection 6 | . 3 . . 1 2 Artifact . | . . . . . . Weapon 19 | 2 4 . . . 13 Energy Gun 1 | . 1 . . . . Energy Cannon . | . . . . . . Ballistic Gun 11 | 2 2 . . . 7 Ballistic Cannon 3 | . . . . . 3 Launcher 4 | . 1 . . . 3 Special Weapon . | . . . . . . Impact Weapon . | . . . . . . Slashing Weapon . | . . . . . . Piercing Weapon . | . . . . . . Special Melee Weapon . | . . . . . . Unidentified Prototypes . | . . . . . . Parts Lost 30 | . 2 4 . . 24 Power 5 | . . 1 . . 4 Propulsion 10 | . . 2 . . 8 Utility 7 | . 1 . . . 6 Weapon 8 | . 1 1 . . 6 Highest Loss Streak 11 | . 1 3 . . 11 To Critical Strikes . | . . . . . . Average Backups 12 | 2 8 12 10 11 19 Power . | . 1 . . . . Propulsion . | . . 1 . . . Utility 6 | . 4 6 6 6 9 Weapon 5 | . 2 4 4 4 9 Tool/Special . | . . . . . . Unused Backups 11 | . 2 . . . 9 Power 1 | . 1 . . . . Propulsion 1 | . 1 . . . . Utility 6 | . . . . . 6 Weapon 3 | . . . . . 3 Tool/Special . | . . . . . . Average Slot Usage (%) 95 | . 99 100 100 100 85 Engine 11 | . 14 14 14 14 5 Treads 25 | . 27 28 28 28 19 Leg 1 | . . . . . 4 Wheel 2 | . . . . . 8 Device 3 | . 3 . . . 8 Storage 12 | . 14 14 14 14 8 Processor 3 | . . 11 . . 7 Protection 8 | . 10 2 14 14 . Ballistic Gun 19 | . 27 26 14 14 14 Launcher 5 | . . 1 14 14 . Peak Build Rating 28 | 9 9 8 8 8 28 Average Rating 11 | 5 8 7 8 8 20 On Entrance 6 | . 9 8 8 8 8 Naked Turns 5 | . . . . . 5 Heaviest Build 95 | 12 30 52 52 52 95 Greatest Support 40 | 40 40 40 40 40 40 Greatest Overweight (x) 29 | . . 1 1 1 29 Average Overweight (x) 1 | . . . 1 1 6 Largest Inventory Capacity 25 | 8 15 20 20 20 25 Average Capacity 18 | 7 11 17 20 20 24 Most Carried 25 | 3 12 15 10 13 25 Average Carried 12 | 2 8 12 10 11 19 Final Capacity 20 | 8 15 20 20 20 5 Final Carried 12 | 3 12 10 10 12 5 Class Distribution -------------------- 71% | Mutant 26% | Scavenger-Mutant Dominant Class ---------------- Mutant | -10/Materials Scavenger-Mutant | -10/Mines Mutant | -10/Exiles Mutant | -9/Mines Mutant | -8/Materials Resources | -11 -10 -10 -10 -9 -8 ----------- Run | Yrd Mat Min Exi Min Mat Matter Collected 2649 | 102 570 549 . 53 1375 Remotely 49 | . . . . . 49 Salvage Created 2846 | 29 657 372 . 17 1771 Parts 152 | 4 45 19 . 2 82 Haulers Intercepted 3 | . 1 . . . 2 Recyclers Shooed 1 | . . . . . 1 Parts Field Recycled . | . . . . . . Retrieved Matter . | . . . . . . Parts Self-Destructed . | . . . . . . Prevented . | . . . . . . Kills | -11 -10 -10 -10 -9 -8 ------- Run | Yrd Mat Min Exi Min Mat Combat Hostiles Destroyed 56 | . 17 6 . . 33 Guns 47 | . 15 6 . . 26 Cannons 6 | . . . . . 6 AOE 3 | . 2 . . . 1 Classes Destroyed 14 | 1 6 2 . . 5 Worker 2 | . 1 . . 1 . Builder 4 | . . 2 . . 2 Tunneler 3 | 2 1 . . . . Hauler 3 | . 1 . . . 2 Recycler 3 | . . 1 . . 2 Operator 1 | . 1 . . . . Watcher 4 | . 2 . . . 2 Swarmer 8 | . 6 . . . 2 Grunt 37 | . 11 6 . . 20 Brawler 1 | . . . . . 1 Duelist 1 | . . . . . 1 Sentry 6 | . . . . . 6 Specialist 2 | . . . . . 2 Hunter 1 | . . . . . 1 Best Kill Streak 10 | 2 4 3 . 1 10 Combat Bots Only 9 | . 4 2 . . 9 Max Kills in Single Turn 3 | 1 3 1 . 1 2 Gunslinging 1 | . . . . . 1 Exploded 2 | . 2 . . . 1 Melee . | . . . . . . Uniques/NPCs Destroyed . | . . . . . . Combat | -11 -10 -10 -10 -9 -8 -------- Run | Yrd Mat Min Exi Min Mat Hostile Shots Fired 382 | . 108 60 . . 214 Missed 92 | . 29 13 . . 50 Hits 290 | . 79 47 . . 164 Melee 8 | . . . . . 8 Projectile 282 | . 79 47 . . 156 Critical Strikes 8 | . . 1 . . 7 Damage Taken 4536 | . 839 592 . 38 3067 Core 716 | . 92 69 . . 555 Absorbed by Shields 13 | . . . . . 13 Regen/Repaired (Parts) 202 | . 184 . . . 18 Core Remaining (%) 67 | 100 . . . 35 . Volleys Fired 256 | 6 81 36 . 1 132 Largest 2 | 2 2 2 . 2 2 Hottest 67 | 40 60 50 . 50 67 Shots Fired 508 | 12 161 71 . 2 262 Gun 465 | 12 159 69 . 1 224 Cannon 37 | . . . . . 37 Launcher 6 | . 2 2 . 1 1 Special . | . . . . . . Kinetic 493 | 12 150 69 . 1 261 Thermal 9 | . 9 . . . . Explosive 6 | . 2 2 . 1 1 Electromagnetic . | . . . . . . Robot Hit Streak 24 | 5 14 14 . 5 24 Robot Miss Streak 10 | 1 6 5 . . 10 Penetration Max . | . . . . . . Secondary Targets 3 | . . . . . 3 Max Gunslinging Chain 1 | . . . . . 1 Shots Hit Robots 349 | 8 103 52 . 2 184 Core Hits 160 | 3 38 24 . 1 94 Critical Kills 2 | . 1 . . . 1 Critical Parts Destroyed 2 | . 1 . . . 1 Critical Strikes 5 | . 2 . . . 3 Destroy 4 | . 2 . . . 2 Blast 1 | . . . . . 1 Melee Attacks . | . . . . . . Impact . | . . . . . . Slashing . | . . . . . . Piercing . | . . . . . . Sneak Attacks . | . . . . . . Combat Hostiles . | . . . . . . Follow-up Attacks . | . . . . . . Damage Inflicted 5169 | 88 1242 475 . 40 3324 Guns 4098 | 88 926 450 . 6 2628 Cannons 533 | . . . . . 533 Explosions 535 | . 316 25 . 34 160 Melee . | . . . . . . Ramming 3 | . . . . . 3 Kinetic 4552 | 88 847 450 . 6 3161 Thermal 348 | . 348 . . . . Explosive 231 | . 47 25 . 34 125 Electromagnetic 35 | . . . . . 35 Impact . | . . . . . . Slashing . | . . . . . . Piercing . | . . . . . . Highest Corruption 2 | . . . . . 2 Average Corruption 2 | . . . . . 2 Corruption Purged . | . . . . . . Corruption Blocked . | . . . . . . Effects 11 | . . . . . 11 Message Errors 3 | . . . . . 3 Matter Fused 2 | . . . . . 2 Heat Flow Errors 2 | . . . . . 2 Energy Discharges 1 | . . . . . 1 Data Loss (minor) 1 | . . . . . 1 Data Loss (major) 1 | . . . . . 1 Alerts 1 | . . . . . 1 Overload Shots . | . . . . . . Overflow Damage 98 | . 92 . . . 6 Projectiles 6 | . . . . . 6 Explosions 92 | . 92 . . . . Melee . | . . . . . . Knockbacks 4 | . . . . . 4 Impact . | . . . . . . Kinetic 4 | . . . . . 4 Secondary . | . . . . . . Self-Inflicted Damage 170 | . . . . 39 131 Shots 4 | . . . . 1 3 Rammed 1 | . . . . . 1 Targets Rammed 1 | . . . . . 1 Kicked . | . . . . . . Crushed . | . . . . . . Highest Temperature 243 | . 174 68 . 16 243 Average Temperature 24 | . 25 24 . 12 22 Received Heat Transfer 1587 | . 321 357 . . 909 Siege Activations . | . . . . . . Martial Activations . | . . . . . . Shielding Activations . | . . . . . . Robots Disrupted . | . . . . . . Combat Hostiles . | . . . . . . Robots Corrupted . | . . . . . . Combat Hostiles . | . . . . . . Parts Fried . | . . . . . . Impact Corruptions . | . . . . . . Robots Melted . | . . . . . . Combat Hostiles . | . . . . . . Parts Melted . | . . . . . . Heat Transferred 325 | . 325 . . . . Parts Sabotaged . | . . . . . . Parts Stolen . | . . . . . . Parts Stripped . | . . . . . . Power Chain Reactions 1 | . . . . . 1 Alert | -11 -10 -10 -10 -9 -8 ------- Run | Yrd Mat Min Exi Min Mat Maximum Alert Level 1 | . 1 . . . 1 Low Security (%) 79 | 100 58 100 . 100 73 Level 1 20 | . 41 . . . 26 Level 2 . | . . . . . . Level 3 . | . . . . . . Level 4 . | . . . . . . Level 5 . | . . . . . . High Security . | . . . . . . Max Security . | . . . . . . Peak Influence 272 | 5 272 132 . 81 246 Initial 97 | . . 97 . . 26 Average 84 | . 118 47 . 2 131 Influence Increases 1960 | 10 644 190 . 95 1021 Destroy 0b10 Robot/C 1220 | . 340 120 . 60 700 Destroy 0b10 Robot/NC 100 | 10 30 15 . 5 40 Destroy Leader 304 | . 76 30 . 10 188 Allied During Kill 23 | . . . . 11 12 Successful Hack 33 | . 28 . . . 5 Disable Machine 150 | . 120 15 . . 15 Destroy Structure 70 | . 35 10 . 9 16 Lose Combat Pursuer 60 | . 15 . . . 45 Influence Decreases 1758 | 10 392 402 40 26 888 Entered New Map 238 | . . 155 40 . 43 Time Decay 1195 | 10 382 232 . 26 545 Lost Part 265 | . 10 15 . . 240 Lost Ally 60 | . . . . . 60 Squads Dispatched 16 | . 4 . . . 12 Investigation 5 | . 2 . . . 3 Extermination . | . . . . . . Reinforcement 8 | . 2 . . . 6 Assault . | . . . . . . Garrison 3 | . . . . . 3 Intercept . | . . . . . . Searches Triggered . | . . . . . . Construction Impeded 2 | . . . . . 2 Haulers Reinforced . | . . . . . . Active Scanning Responses . | . . . . . . Cargo Convoy Interrupts . | . . . . . . Stealth | -11 -10 -10 -10 -9 -8 --------- Run | Yrd Mat Min Exi Min Mat Distress Signals 3 | . . . . . 3 Communications Jammed . | . . . . . . Distress Signals . | . . . . . . Times Spotted 91 | . 24 6 . 3 58 Peak Tracking Total 10 | . 5 2 . 3 10 Tactical Retreats 4 | . 1 . . . 3 Traps | -11 -10 -10 -10 -9 -8 ------- Run | Yrd Mat Min Exi Min Mat Traps Triggered 4 | . 1 . . . 3 Indirectly . | . . . . . . Trap Hack Attempts . | . . . . . . Triggered . | . . . . . . Disarmed . | . . . . . . Reprogrammed . | . . . . . . Reused . | . . . . . . Traps Extracted . | . . . . . . Installed . | . . . . . . Triggered . | . . . . . . Machines | -11 -10 -10 -10 -9 -8 ---------- Run | Yrd Mat Min Exi Min Mat Machines Disabled 10 | . 8 1 . . 1 Max in Single Turn 7 | . 7 1 . . 1 Machines Repaired . | . . . . . . Machines Dismantled . | . . . . . . Machines Sabotaged . | . . . . . . Overloaded Fab Kills . | . . . . . . Hacking | -11 -10 -10 -10 -9 -8 --------- Run | Yrd Mat Min Exi Min Mat Machines Accessed 13 | . 6 . 1 1 5 Terminals 8 | . 5 . . 1 2 Fabricators . | . . . . . . Repair Stations 2 | . 1 . . . 1 Recycling Units 1 | . . . . . 1 Scanalyzers 1 | . . . . . 1 Garrison Access . | . . . . . . Total Hacks 56 | . 24 . 23 1 8 Successful 44 | . 14 . 23 . 7 Failed 11 | . 9 . . 1 1 Catastrophic 2 | . . . . 1 1 Database Lockouts 1 | . 1 . . . . Manual 8 | . 7 . . . 1 Terminals 22 | . 19 . . 1 2 Fabricators . | . . . . . . Repair Stations 7 | . 5 . . . 2 Recycling Units 1 | . . . . . 1 Scanalyzers 3 | . . . . . 3 Garrison Access . | . . . . . . Terminal Hacks 34 | . 10 . 23 . 1 Record 23 | . . . 23 . . Robot Analysis 1 | . 1 . . . . Prototype ID Bank 2 | . 2 . . . . Terminal Index 1 | . 1 . . . . Locate Traps 2 | . 2 . . . . Maintenance Status 1 | . . . . . 1 Investigation Status 1 | . 1 . . . . Hauler Manifests 1 | . 1 . . . . Zone Layout 2 | . 2 . . . . Fabricator Hacks . | . . . . . . Repair Station Hacks 6 | . 4 . . . 2 Scan Component 3 | . 2 . . . 1 Repair 3 | . 2 . . . 1 Recycling Unit Hacks 1 | . . . . . 1 Report Inventory 1 | . . . . . 1 Scanalyzer 3 | . . . . . 3 Insert Component 2 | . . . . . 2 Analyze 1 | . . . . . 1 Garrison Access Hacks . | . . . . . . Unauthorized Hacks . | . . . . . . Terminals . | . . . . . . Fabricators . | . . . . . . Repair Stations . | . . . . . . Recycling Units . | . . . . . . Scanalyzers . | . . . . . . Garrison Access . | . . . . . . Data Cores Recovered . | . . . . . . Used . | . . . . . . Hacking Detections 8 | . 5 . . . 3 Full Trace Events 5 | . 4 . . . 1 Feedback Events . | . . . . . . Feedback Blocked . | . . . . . . Robot Schematics Acquired . | . . . . . . Robots Built . | . . . . . . Authchips . | . . . . . . Time . | . . . . . . Total Robot Build Rating . | . . . . . . Part Schematics Acquired 1 | . . . . . 1 Parts Built . | . . . . . . Authchips . | . . . . . . Time . | . . . . . . Total Part Build Rating . | . . . . . . Parts Repaired 3 | . 2 . . . 1 Time 78 | . 52 . . . 26 Parts Recycled . | . . . . . . Recycled Matter . | . . . . . . Retrieved Matter . | . . . . . . Retrieved Components . | . . . . . . Parts Scanalyzed 1 | . . . . . 1 Part Schematics Acquired 1 | . . . . . 1 Parts Damaged . | . . . . . . Bothacking | -11 -10 -10 -10 -9 -8 ------------ Run | Yrd Mat Min Exi Min Mat Used RIF Installer . | . . . . . . Robots Hacked . | . . . . . . Non-combat . | . . . . . . Combat . | . . . . . . Robot Hacks Applied . | . . . . . . Relay Couplers Released . | . . . . . . Fabnet Peak Effective % . | . . . . . . Robots Rewired . | . . . . . . Allies Hacked . | . . . . . . Hacks Repelled . | . . . . . . Allies | -11 -10 -10 -10 -9 -8 -------- Run | Yrd Mat Min Exi Min Mat Total Allies 4 | . . . . 4 . Largest Group 3 | . . . . 3 3 Highest-Rated Group 40 | . . . . 40 40 Highest-Rated Ally 31 | . . . . 31 16 Total Orders . | . . . . . . Ally Attacks 43 | . . . . 25 18 Total Damage 469 | . . . . 271 198 Kills 5 | . . . . 3 2 Allies Corrupted . | . . . . . . Allies Melted . | . . . . . . Intel | -11 -10 -10 -10 -9 -8 ------- Run | Yrd Mat Min Exi Min Mat Active Infowar (turns) 1794 | 17 285 . . . 1492 Sensors 1492 | . . . . . 1492 Terrain 331 | 17 285 . . . 29 Robot Analysis Total 1 | . 1 . . . . Derelict Logs Recovered 2 | . . . . 2 . Drone Launches . | . . . . . . Drone Recoveries . | . . . . . . Exploration | -11 -10 -10 -10 -9 -8 ------------- Run | Yrd Mat Min Exi Min Mat Turns Passed 5652 | 121 1332 638 905 1052 1604 Spaces Moved 2283 | 61 618 283 378 436 507 Core 15 | 5 . . . . 10 Treads 1819 | 56 618 283 378 436 48 Legs . | . . . . . . Wheels 449 | . . . . . 449 Hover . | . . . . . . Flight . | . . . . . . Fastest Speed 50 | 50 160 160 240 240 50 Average Speed 200 | 150 160 188 240 240 196 Slowest Speed 1500 | 160 160 240 240 240 1500 Overloaded Moves . | . . . . . . Propulsion Burnouts . | . . . . . . Robots Hopped . | . . . . . . Potential Cave-ins . | . . . . . . Cave-ins Triggered . | . . . . . . Exploration Rate (%) 59 | 5 86 69 75 87 37 Regions Visited 5 Branch Regions 3 Pre-discovered Areas 1 | . . . 1 . . Known Exits Taken 1 | . 1 . . . . Unknown Exits Taken 4 | 1 . 1 1 1 . Scrap Searched 5 | . . 3 . 2 . Spaces Dug . | . . . . . . Terrain Destroyed 62 | . 31 10 . 9 12 Melee . | . . . . . . Projectile . | . . . . . . AOE 62 | . 31 10 . 9 12 Terrain Rammed . | . . . . . . Walls Destroyed . | . . . . . . Machines Disabled . | . . . . . . Actions | -11 -10 -10 -10 -9 -8 --------- Run | Yrd Mat Min Exi Min Mat Total 2913 | 76 822 330 377 440 868 Wait 236 | . 84 1 . . 151 Move 2278 | 60 617 282 377 435 507 Hop . | . . . . . . Pick Up 49 | 3 14 3 . 1 28 Fast Attach 14 | 7 1 . . . 6 Attach 24 | . 2 4 . . 18 Detach . | . . . . . . Swap 37 | . 15 3 . 2 17 Drop 18 | . 8 1 . 1 8 Fire 256 | 6 81 36 . 1 132 Melee . | . . . . . . Ram . | . . . . . . Kick . | . . . . . . Crush 1 | . . . . . 1 Escape Stasis . | . . . . . . Rewire . | . . . . . . Trap . | . . . . . . Miscellaneous . | . . . . . . Route ------- -11/Scrapyard -10/Materials (discovered 6 exits: *Mat x3 / *Min x2 / [*Sub]) -10/Mines -10/Exiles (discovered 2 exits: *Min x2) -9/Mines -8/Materials History --------- Turn | Location | Event 7 | -11/Scrapyard | Discovered new exit (range 15) 122 | -11/Scrapyard | Entered Materials 307 | -10/Materials | Build established: Mutant 625 | -10/Materials | Discovered new exit (range 13) 855 | -10/Materials | Discovered new exit (range 14) 864 | -10/Materials | Central database locked down 938 | -10/Materials | Discovered new exit (range 13) 1132 | -10/Materials | Repaired Lgt. Treads 1159 | -10/Materials | Repaired Lgt. Treads 1212 | -10/Materials | Discovered new exit (range 16) 1398 | -10/Materials | Discovered new exit (range 3) 1400 | -10/Materials | Discovered new exit (range 7) 1432 | -10/Materials | Identified exit to Mines 1441 | -10/Materials | Identified exit to Materials 1448 | -10/Materials | Build established: Scavenger-Mutant 1454 | -10/Materials | Entered Mines 1602 | -10/Mines | YI-UF0 nonchalantly dropped a Grenade Launcher on the ground 1845 | -10/Mines | Core integrity fell below 50% 2004 | -10/Mines | Lost 3 parts (2n1w) 2076 | -10/Mines | Discovered new exit (range 7) 2092 | -10/Mines | Entered Exiles 2150 | -10/Exiles | Discovered new exit (range 15) 2203 | -10/Exiles | Met 8R-AWN 2241 | -10/Exiles | Met EX-HEX 2258 | -10/Exiles | Build established: Mutant 2344 | -10/Exiles | Met EX-DEC 2441 | -10/Exiles | Visited The Gauntlet 2863 | -10/Exiles | Learned location of Zion (-6) 2949 | -10/Exiles | Discovered new exit (range 15) 2997 | -10/Exiles | Entered Mines 3005 | -9/Mines | Met a Derelict bent on vengeance 3092 | -9/Mines | Learned Materials emergency access door positions 3153 | -9/Mines | Received a Mining Laser from a helpful Derelict 3891 | -9/Mines | Discovered new exit (range 13) 3958 | -9/Mines | Assisted by bots powering up and referring to "LRC-V3" 4049 | -9/Mines | Entered Materials 4049 | -8/Materials | Accompanied by 3 allies 4049 | -8/Materials | Evolved 4 slots: Propulsion x3, Utility x1 4137 | -8/Materials | Lost 3 allies 4178 | -8/Materials | Lost 3 parts (3u) 4532 | -8/Materials | Destroyed 9 combat bots 4658 | -8/Materials | Repaired Sensor Array 4850 | -8/Materials | Lost 3 parts (1p1n1w) 4864 | -8/Materials | Build established: Scavenger-Mutant 5245 | -8/Materials | Garrison activated, responded to threat 5378 | -8/Materials | Build established: Mutant 5615 | -8/Materials | Core integrity fell below 50% 5647 | -8/Materials | Core integrity fell below 20% 5648 | -8/Materials | Released all parts (4) 5653 | -8/Materials | Destroyed by G-47 Trooper with Particle Gun Last Messages --------------- 05616_ Knocked back. 05618_ Shield Generator destroyed. 05618_ Knocked back. 05619_ U-05 Engineer builds a Wall. 05624_ WMZWOHFV9RI/JMX/:M,VWLGBVUUDQUC/>DYGG 05634_ U-05 Engineer destroyed. 05635_ Minigun destroyed. 05635_ Knocked back. 05636_ Acquired 4 matter. 05638_ ALERT: Construction progress impeded, dispatching reinforcements to local area. 05641_ Grenade Launcher destroyed. 05641_ Knocked back. 05641_ G-47 Trooper destroyed. 05641_ Grenade Launcher destroyed. 05645_ Critical hit (Burn: +37). 05646_ Knocked back. 05648_ Released Huge Storage Unit. 05648_ Released Imp. Signal Interpreter. 05648_ Released Proton Missile Launcher. Map ----- +----------------------------------------------------+ | ?????????????????????????????????????????#] | | ?????????????????????????????????????????# # | | ?????????????????????????????+???????######### # | | ???????????????????????????? #???????#%! = !# # | | ????????????????#######???? ????????##[* # # | | ????????????????# #### ???########! ]! %+ # | | ????????????????# ?????# # !! # # | | ????????????????# " ??????# # ! # + | | ????????????????# ???????# # # # | | ????????????????# #????????# ######## # | | ?????????????????# #?????????# "T" #??????# # | | ?????????????????# #?????????# #??????# # | | ???????????????### % ##############+########## # | | ???????????????#""%* % [%* # | | ???????????????#"T * [ |! # | | ???????????????#"" # | | ??????##+#?????### ############+################ | | ##????# ######### ######### #???????? | | ? ???# += ## ## / [ ]] #???????? | | ?? ??# #%[""" ## ## /] # ]] #???????? | | ?? ??# #! """ ## ## ! /[[# ]] #???????? | | ??? ?# # """ ## ## [" !%* #???????? | | ?""? # # ## ## # % #???????? | | #"""[ # =#[%%"" ## ## # #???????? | | # /=%+=%S"" # ###/######+################# | | # # *#*%"" !#] @ # !% | | ##+#### #####!!]![ %# """["" | | + =%H!Y!*g] # """%"" | | ## =* !!%g! ##########+### + [ """*"" | | ?# ######### %!] ###??# # #% =*=%*%! | | ?# ?????????#### ####????# # ########### | | ?#???????????? ???????# # #?????????# | | ???????????? ???????# #####???#????## | | ??????????? ??????# #????????????# | | ???????????""" """ ??????# #????????????## | | ???????????""" """ #?????# ! #?????????????# | | ?????????????" """ #?????# #?????????????# | | ?????????????#?####??????##########??????????#??## | | | | | | | | | | | | | | | | | | | | | | | | | +----------------------------------------------------+ Best States ------------- Heat Dissipation 31 Energy Generation 14 Energy Capacity 250 Matter Stores 300 Matter Capacity 300 Sight Range 16 Robot Scan Range 15 Terrain Scan Range 16 Terrain Scan Density 10 Armor Coverage 150 Evasion (%) 50 Recoil Reduction 2 Item Schematics ----------------- Hcp. Storage Unit | -8/Materials | Scanalyzed Robot Schematics ------------------ None Fabricated ------------ Nothing Repaired ---------- Lgt. Treads | 19% | -10/Materials Lgt. Treads | 49% | -10/Materials Sensor Array | 10% | -8/Materials Alien Tech Used ----------------- None Achievements -------------- None Challenges ------------ None Game ------ Seed DimensionalZioniteProcessor Manual? 0 Play Time 00:41:47 Cumulative 18.2 hours Start 2025.07.20 @ 13:06:54 End 2025.07.20 @ 15:49:25 Sessions 1 Manual Loads 0 Difficulty Rogue Special Mode None Game No. 34 Rogue 34 Adventurer 0 Explorer 0 Win Type - Total 0 Types 0/0/0/0/0/0/0/0/0/0 Lore% 10 Gallery% 17 Achievement% 21 Wizard Run 0 Options --------- Layout 0 ASCII 0 Keyboard 0 Movement Arrows Keybinds 0 Fullscreen 1 Font 18/Smallcaps Map View 76x50 Zoom Use 0% Tactical HUD 1 Map Filters NONE Filters NONE Steam 1 RUN: daed7603-9405-4f22-b367-55bac9bf89e7